bitfinex/quotes_ETHUSD_20250824
["timestamp","ask_amount","ask_price","bid_price","bid_amount"]
[1756029161429,5.569843,4786.9,4786.8,2.39487829]
[1756029161669,5.569843,4786.9,4786.8,0.3058]
[1756029163363,5.569843,4786.9,4786.8,2.39487829]
[1756029163664,5.569843,4786.9,4786.8,0.3058]
[1756029164664,5.569843,4786.9,4786.8,2.39487829]
[1756029164840,5.569843,4786.9,4786.8,0.3058]
[1756029165459,2.081843,4786.9,4786.8,0.3058]
[1756029165657,5.569843,4786.9,4786.8,0.3058]
[1756029165825,2.081843,4786.9,4786.8,0.3058]
[1756029166030,5.569843,4786.9,4786.8,0.3058]
[1756029166347,4.44155684,4786.9,4786.8,0.3058]
[1756029167233,4.73745684,4786.9,4786.8,0.02]
[1756029167444,5.16885684,4786.9,4786.8,0.02]
[1756029167958,5.16885684,4786.9,4786.8,0.021]
[1756029168160,4.44155684,4786.9,4786.8,0.021]
[1756029169455,0.66,4786.8,4785.1,0.04]
[1756029169763,1.42516108,4786.2,4785.1,0.04]
[1756029169931,6.04482948,4786.2,4785.1,0.04]
[1756029170129,6.12860248,4786.2,4785.1,0.04]
[1756029170362,6.55993463,4786.2,4785.1,0.04]
[1756029170730,8.05893999,4786.2,4785.1,0.04]
[1756029171364,6.55993591,4786.2,4785.1,0.041]
[1756029172135,7.21993591,4786.2,4785.1,0.041]
[1756029172364,12.30927609,4786.2,4785.1,0.041]
[1756029173050,10.21993591,4786.2,4785.1,0.041]
[1756029173364,11.72391407,4786.2,4785.1,0.041]
[1756029173533,13.81325425,4786.2,4785.1,0.041]
[1756029173972,10.21993591,4786.2,4785.1,0.041]
[1756029174371,11.72346143,4786.2,4785.1,0.041]
[1756029174545,13.81280161,4786.2,4785.1,0.041]
[1756029174955,11.72346143,4786.2,4785.1,0.041]
[1756029175269,13.81280161,4786.2,4785.1,0.041]
[1756029175465,11.72346143,4786.2,4785.1,0.041]
[1756029176451,10.21960846,4786.2,4785.1,2.13080926]
[1756029176748,10.21960846,4786.2,4785.1,0.041]
[1756029177157,5.08938384,4786.1,4785.1,0.041]
[1756029177350,8.96884651,4785.9,4785.1,0.041]
[1756029177544,11.70585312,4785.9,4785.1,0.041]
[1756029177959,12.16785312,4785.9,4785.1,0.041]
[1756029178178,12.49493499,4785.9,4785.1,0.041]
[1756029178490,10.40546384,4785.9,4785.1,0.041]
[1756029179285,12.49493499,4785.9,4785.1,0.041]
[1756029179586,0.66,4785.7,4785.1,0.041]
[1756029179781,3.0,4785.4,4785.1,0.041]
[1756029179983,5.74930114,4785.3,4785.1,0.041]
[1756029180288,0.64730114,4785.2,4785.1,0.041]
[1756029180591,2.02331614,4785.2,4785.1,0.041]
[1756029180763,1.73771614,4785.2,4785.1,0.041]
[1756029181371,2.02331614,4785.2,4785.1,0.041]
[1756029181567,3.14862039,4785.2,4785.1,0.041]
[1756029182879,1.27571614,4785.2,4785.1,0.3471]
[1756029183092,4.76971614,4785.2,4785.1,0.3471]
[1756029183449,4.6956803,4785.2,4785.1,2.43692048]
[1756029183882,4.29296276,4785.2,4785.1,2.43692048]
[1756029184257,4.29296276,4785.2,4785.1,0.3471]
[1756029184568,5.36764313,4785.2,4785.1,0.041]
[1756029184987,6.02764313,4785.2,4785.1,0.041]
[1756029185186,7.34819768,4785.2,4785.1,0.041]
[1756029185498,7.348178,4785.2,4785.1,0.041]
[1756029185654,10.348178,4785.2,4785.1,0.041]
[1756029186697,9.886178,4785.2,4785.1,0.041]
[1756029186986,8.945578,4785.2,4785.1,0.041]
[1756029187198,7.82027375,4785.2,4785.1,0.041]
[1756029187396,8.10587375,4785.2,4785.1,0.041]
[1756029187702,8.56787375,4785.2,4785.1,0.041]
[1756029187896,4.82127375,4785.2,4785.1,0.041]
[1756029188199,4.62604313,4785.2,4785.1,0.041]
[1756029189067,5.08804313,4785.2,4785.1,0.041]
[1756029189262,4.76096276,4785.2,4785.1,0.041]
[1756029189694,4.29896276,4785.2,4785.1,0.041]
[1756029189898,5.04656276,4785.2,4785.1,0.041]
[1756029191105,1.54656276,4785.2,4785.1,0.041]
[1756029191292,5.24179012,4785.2,4785.1,0.041]
[1756029191679,1.74179012,4785.2,4785.1,0.041]
[1756029191897,5.24079012,4785.2,4785.1,0.041]
[1756029192299,5.24079,4785.2,4785.1,0.041]
[1756029192712,5.56789225,4785.2,4785.1,0.041]
[1756029193092,5.10589225,4785.2,4785.1,0.041]
[1756029193298,5.56789225,4785.2,4785.1,0.041]
[1756029194608,1.32129225,4785.2,4785.1,0.3471]
[1756029194817,4.81929225,4785.2,4785.1,0.3471]
[1756029195198,5.9445965,4785.2,4785.1,0.3471]
[1756029195845,5.9445965,4785.2,4785.1,0.041]
[1756029196127,6.6921965,4785.2,4785.1,0.041]
[1756029196331,5.56689225,4785.2,4785.1,0.041]
[1756029198331,5.56689225,4785.2,4784.8,0.02]
[1756029198628,1.12740931,4785.0,4784.8,0.02]
[1756029198826,0.45186276,4784.9,4784.8,0.02]
[1756029199028,4.14459359,4784.9,4784.8,0.3261]
[1756029199754,4.77299459,4784.9,4784.8,0.3261]
[1756029200738,4.77160669,4784.9,4784.8,0.3261]
[1756029201123,1.27560669,4784.9,4784.8,0.3261]
[1756029201325,4.77160669,4784.9,4784.8,0.3261]
[1756029204144,1.27560669,4784.9,4784.8,0.3261]
[1756029204448,4.77060669,4784.9,4784.8,0.3261]
[1756029205523,1.2760445,4784.9,4784.8,2.41605151]
[1756029205847,4.7700445,4784.9,4784.8,0.3261]
[1756029206438,4.7700445,4784.9,4784.8,2.41605151]
[1756029206629,4.7700445,4784.9,4784.8,0.3261]
[1756029208847,4.57387586,4784.9,4784.8,0.3261]
[1756029209147,4.77012967,4784.9,4784.8,0.02]
[1756029209324,4.77012967,4784.9,4784.8,0.3281]
[1756029209931,4.77012967,4784.9,4784.8,0.02]
[1756029211655,1.27612967,4784.9,4784.8,2.41805151]
[1756029211833,4.14072867,4784.9,4784.8,2.88871026]
[1756029212236,5.07469798,4784.9,4784.8,2.88871026]
[1756029212442,5.27092115,4784.9,4784.8,2.88871026]
[1756029213561,0.45147486,4784.9,4784.8,2.88871026]
[1756029213951,3.94447486,4784.9,4784.8,2.88871026]
[1756029214259,3.94447486,4784.9,4784.8,3.08721026]
[1756029214433,0.45147486,4784.9,4784.8,2.88871026]
[1756029214628,3.94447486,4784.9,4784.8,2.88871026]
[1756029214828,3.94447486,4784.9,4784.8,3.08721026]
[1756029215053,3.94447486,4784.9,4784.8,2.88871026]
[1756029215252,4.50911072,4784.9,4784.8,2.88871026]
[1756029216447,4.50911072,4784.9,4784.8,3.08721026]
[1756029216647,4.50911072,4784.9,4784.8,2.88871026]
[1756029217257,0.75336363,4785.3,4784.8,5.88871026]
[1756029217456,0.4335,4786.4,4785.3,2.08973314]
[1756029217457,0.628328,4785.4,4785.3,2.08973314]
[1756029217671,0.75336363,4786.1,4786.0,2.08942749]
[1756029217836,1.13022312,4786.4,4786.2,2.08934018]
[1756029217837,0.75336363,4786.4,4786.2,2.08934018]
[1756029218042,0.75336363,4786.6,4786.5,2.08920923]
[1756029218240,0.75336363,4786.7,4786.6,2.08916558]
[1756029218540,0.022,4786.8,4786.7,2.08912194]
[1756029218740,0.022,4786.8,4786.7,2.39722194]
[1756029219738,3.519,4786.8,4786.7,2.39722194]
[1756029220038,3.519,4786.8,4786.7,2.87182009]
[1756029220672,3.8203,4786.8,4786.2,2.08930177]
[1756029220833,0.4335,4786.7,4785.4,2.08968588]
[1756029221040,0.4335,4786.7,4786.2,2.08933633]
[1756029221264,0.3013,4786.3,4786.2,2.08933633]
[1756029221444,4.2318,4786.3,4786.1,2.08938027]
[1756029221661,0.4335,4786.2,4786.0,2.08942698]
[1756029221837,3.7983,4786.3,4785.5,2.08962334]
[1756029221838,0.7348,4786.1,4785.5,2.08962334]
[1756029222042,0.7348,4786.1,4785.0,2.08984608]
[1756029222043,3.9305,4786.0,4785.0,2.08984608]
[1756029222373,0.4335,4785.9,4785.1,0.51098461]
[1756029222540,0.4335,4785.9,4785.4,2.08968688]
[1756029222740,0.4335,4785.9,4785.5,2.08963689]
[1756029222942,4.125241,4786.0,4785.5,2.08963689]
[1756029222943,0.3013,4785.6,4785.5,2.08963689]
[1756029223141,3.8003,4785.6,4785.5,2.08963689]
[1756029223341,4.2338,4785.6,4785.5,2.08963689]
[1756029225676,3.499,4785.6,4785.5,2.08963689]
[1756029225838,3.499,4785.6,4785.5,2.39773689]
[1756029226039,3.498,4785.6,4785.5,2.84648324]
[1756029226773,3.498,4785.6,4785.5,2.53838324]
[1756029226978,3.498,4785.6,4785.5,2.08963689]
[1756029227555,4.2328,4785.6,4785.5,2.08963689]
[1756029227755,4.2318,4785.6,4785.5,2.08963689]
[1756029228766,3.497,4785.6,4785.5,2.08963689]
[1756029229264,3.946984,4785.6,4785.5,2.08963689]
[1756029229668,4.681784,4785.6,4785.5,2.08963689]
[1756029230060,3.946984,4785.6,4785.5,2.08963689]
[1756029233439,3.946984,4785.6,4785.5,2.40533689]
[1756029234155,3.946984,4785.6,4785.5,2.08963689]
[1756029235360,4.701084,4785.6,4785.5,2.08963689]
[1756029235981,4.703084,4785.6,4785.5,2.08963689]
[1756029236762,4.703084,4785.6,4784.8,0.021]
[1756029236962,4.2531,4785.6,4785.5,2.0896458]
[1756029237168,4.70342545,4785.6,4785.5,2.0896458]
[1756029239197,3.94932545,4785.6,4785.5,2.4053458]
[1756029239774,3.94532545,4785.6,4785.5,2.4053458]
[1756029240205,0.45232545,4785.6,4785.5,2.4053458]
[1756029240501,0.45232545,4785.6,4785.5,3.22390221]
[1756029240689,0.45232545,4785.6,4785.5,9.91440221]
[1756029240897,0.002,4785.6,4785.5,9.91440221]
[1756029241306,0.45277984,4785.6,4785.5,9.91440221]
[1756029241502,0.002,4785.6,4785.5,9.91440221]
[1756029241880,0.75536363,4786.6,4786.5,2.08920923]
[1756029242079,3.94677621,4786.6,4786.5,2.40490923]
[1756029242286,3.94677621,4786.6,4786.5,2.64540015]
[1756029242287,0.45277621,4786.6,4786.5,2.64540015]
[1756029243293,0.76277621,4786.6,4786.5,2.08920923]
[1756029243498,4.70087621,4786.6,4786.1,2.08935802]
[1756029243790,0.89487621,4786.5,4785.7,2.08952179]
[1756029243997,0.89487621,4786.4,4786.0,2.08941741]
[1756029244315,0.31,4786.1,4786.0,2.08942507]
[1756029244514,4.25477621,4786.1,4786.0,2.08942507]
[1756029244680,4.69887621,4786.1,4786.0,2.08942507]
[1756029245531,4.69911176,4786.1,4786.0,2.08942507]
[1756029245822,4.25501176,4786.1,4786.0,2.08942507]
[1756029246024,3.94501176,4786.1,4786.0,2.08942507]
[1756029246586,3.94501176,4786.1,4786.0,2.40512507]
[1756029247699,4.69911176,4786.1,4786.0,2.08942507]
[1756029248020,3.94501176,4786.1,4786.0,2.08942507]
[1756029249184,3.94501176,4786.1,4786.0,2.40512507]
[1756029249383,3.94501176,4786.1,4786.0,2.08942507]
[1756029250812,0.45101176,4786.1,4786.0,2.40512507]
[1756029251217,0.45101176,4786.1,4786.0,2.08942507]
[1756029251922,0.45101176,4786.1,4786.0,2.40512507]
[1756029252095,0.45101176,4786.1,4786.0,2.08942507]
[1756029252833,3.492,4786.3,4786.2,2.08934018]
[1756029253149,4.69743823,4786.3,4786.2,2.08934018]
[1756029253648,4.69743823,4786.3,4784.8,0.021]
[1756029253823,0.75230843,4785.8,4785.5,2.08960253]
[1756029254151,3.94333823,4785.7,4785.6,2.08960213]
[1756029254368,4.69743823,4785.7,4785.6,2.08960213]
[1756029259439,4.69743823,4785.7,4785.5,2.09063549]
[1756029259650,0.89543823,4785.6,4785.5,2.09063549]
[1756029259848,1.20543823,4785.6,4785.5,2.09063549]
[1756029265043,1.20543823,4785.6,4785.5,0.001]
[1756029265241,1.95774666,4785.6,4785.5,0.001]
[1756029265643,1.95774666,4785.6,4785.5,2.0906458]
[1756029265880,0.76133823,4785.6,4785.5,2.0906458]
[1756029266052,1.19193823,4785.6,4785.5,2.0906458]
[1756029268877,0.45133823,4785.6,4785.5,2.0906458]
[1756029269674,0.88193823,4785.6,4785.5,2.0906458]
[1756029269975,0.45133823,4785.6,4785.5,2.0906458]
[1756029270360,1.17863823,4785.6,4785.5,2.0906458]
[1756029272662,1.93094666,4785.6,4785.5,2.0906458]
[1756029274891,1.17863823,4785.6,4785.5,2.0906458]
[1756029275288,1.93094666,4785.6,4785.5,2.0906458]
[1756029275687,1.17863823,4785.6,4785.5,2.0906458]
[1756029276903,0.45133823,4785.6,4785.5,2.0906458]
[1756029277111,1.17863823,4785.6,4785.5,2.0906458]
[1756029278083,0.88193823,4785.6,4785.5,2.0906458]
[1756029278288,1.63424666,4785.6,4785.5,2.0906458]
[1756029279966,1.93094666,4785.6,4785.5,2.0906458]
[1756029280868,1.20364666,4785.6,4785.5,2.0906458]
[1756029281712,1.20364666,4785.6,4785.5,2.3949458]
[1756029282225,1.20364666,4785.6,4785.5,3.19241257]
[1756029282449,1.01614468,4785.6,4785.5,3.39091257]
[1756029282612,1e-08,4785.7,4785.6,2.08960213]
[1756029282813,0.002,4786.1,4786.0,2.08942749]
[1756029283156,0.002,4786.1,4786.0,18.68643109]
[1756029283303,0.56680645,4786.6,4786.5,2.08920923]
[1756029283514,0.002,4786.6,4786.5,13.90675574]
[1756029283826,0.002,4786.6,4786.5,14.10525574]
[1756029285338,0.002,4786.6,4786.5,13.90675574]
[1756029285637,0.002,4786.6,4786.5,15.51683898]
[1756029285843,0.022,4786.8,4786.7,2.08912194]
[1756029285844,1e-08,4786.8,4786.7,2.08912194]
[1756029286129,1e-08,4786.8,4786.7,8.98822194]
[1756029286701,1e-08,4786.8,4786.7,9.18672194]
[1756029286903,1e-08,4786.8,4786.7,11.32859994]
[1756029287548,1e-08,4786.8,4786.7,7.64009994]
[1756029287700,1e-08,4786.8,4786.7,11.13009994]
[1756029300435,0.002,4787.6,4786.9,2.08903465]
[1756029300637,1e-08,4787.6,4787.5,13.42461935]
[1756029300938,1e-08,4787.6,4787.5,17.01841935]
[1756029303678,0.28640001,4787.6,4787.5,13.21681935]
[1756029303836,0.75900001,4787.6,4787.5,2.08877284]
[1756029304271,0.75900001,4787.6,4786.4,2.08923539]
[1756029304437,0.4726,4787.5,4787.0,2.08895129]
[1756029304768,0.2864,4787.1,4787.0,2.08895129]
[1756029305266,0.759,4787.1,4787.0,2.08895129]
[1756029306237,0.759,4787.1,4786.8,0.02]
[1756029306434,2.0786,4787.0,4786.8,0.02]
[1756029306636,0.44907732,4786.9,4786.8,2.10907829]
[1756029307034,1.606,4787.0,4786.8,2.12907829]
[1756029307230,0.44907732,4786.9,4786.8,0.04]
[1756029307979,1.20807732,4786.9,4786.8,2.12907829]
[1756029308347,1.20807732,4786.9,4786.8,0.04]
[1756029310469,1.95837085,4786.9,4786.8,0.04]
[1756029311039,5.45537085,4786.9,4786.8,0.04]
[1756029311232,4.70507732,4786.9,4786.8,0.04]
[1756029312471,4.70507732,4786.9,4786.6,0.001]
[1756029312668,0.75078229,4786.7,4786.6,0.001]
[1756029312852,1.48625961,4786.7,4786.6,0.001]
[1756029313258,1.95885961,4786.7,4786.6,0.001]
[1756029313436,2.04262361,4786.7,4786.6,0.001]
[1756029315570,1.29184132,4786.7,4786.6,0.001]
[1756029325976,1.95184132,4786.7,4786.6,0.001]
[1756029326278,2.70339316,4786.7,4786.6,0.001]
[1756029326480,1.29261087,4786.7,4786.6,0.001]
[1756029327849,2.04339316,4786.7,4786.6,0.001]
[1756029328050,1.29261087,4786.7,4786.6,0.001]
[1756029328252,2.04339316,4786.7,4786.6,0.001]
[1756029330400,2.70339316,4786.7,4786.6,0.001]
[1756029330693,1.95261087,4786.7,4786.6,0.001]
[1756029332347,2.14815082,4786.7,4786.6,0.001]
[1756029332549,3.27661347,4786.7,4786.6,0.001]
[1756029332950,2.61661347,4786.7,4786.6,0.001]
[1756029333346,1.68387338,4786.7,4786.6,0.001]
[1756029333984,4.98815082,4786.7,4786.6,0.001]
[1756029334289,0.66,4786.6,4786.2,0.001]
[1756029334449,0.3079,4786.3,4786.2,0.001]
[1756029334653,4.25774687,4786.3,4786.2,0.001]
[1756029335047,4.78881387,4786.3,4786.2,0.001]
[1756029335273,5.91665593,4786.3,4786.2,0.001]
[1756029335585,6.11253937,4786.3,4786.2,0.001]
[1756029335983,4.98469731,4786.3,4786.2,0.001]
[1756029337583,4.98476709,4786.3,4786.2,0.001]
[1756029338781,6.59176709,4786.3,4786.2,0.001]
[1756029344196,6.59184161,4786.3,4786.2,0.001]
[1756029345074,6.91884894,4786.3,4786.2,0.001]
[1756029346868,7.1148818,4786.3,4786.2,0.001]
[1756029347297,7.1148818,4786.3,4786.1,0.001]
[1756029347462,0.89714687,4786.2,4786.1,0.001]
[1756029347666,1.59710749,4786.2,4786.1,0.001]
[1756029348064,1.68087649,4786.2,4786.1,0.001]
[1756029348283,1.48484618,4786.2,4786.1,0.001]
[1756029349106,1.48484618,4786.2,4785.8,0.021]
[1756029349302,4.14187718,4786.1,4785.8,0.021]
[1756029349495,0.64587718,4786.0,4785.8,0.021]
[1756029349671,3.94484687,4785.9,4785.8,0.021]
[1756029349872,4.22464518,4785.9,4785.8,0.021]
[1756029350583,4.67194518,4785.9,4785.8,0.021]
[1756029353595,4.51854518,4785.9,4785.8,0.021]
[1756029353798,4.99324518,4785.9,4785.8,0.021]
[1756029357815,4.99321405,4785.9,4785.8,0.021]
[1756029358383,4.69931405,4785.9,4785.8,0.021]
[1756029358705,4.22262398,4785.9,4785.8,0.3356]
[1756029359316,0.72962398,4785.9,4785.8,0.3356]
[1756029359483,4.22162398,4785.9,4785.8,0.3356]
[1756029361610,4.99022398,4785.9,4785.8,0.021]
[1756029361777,4.69632398,4785.9,4785.8,0.021]
[1756029362320,4.51552398,4785.9,4785.8,0.021]
[1756029363111,4.99022398,4785.9,4785.8,0.021]
[1756029364297,4.51552398,4785.9,4785.7,0.001]
[1756029364503,0.64585598,4785.8,4785.7,0.001]
[1756029364700,0.93975598,4785.8,4785.7,0.001]
[1756029365014,1.49822598,4785.8,4785.7,0.001]
[1756029365216,1.20432598,4785.8,4785.7,0.001]
[1756029365584,0.72962598,4785.8,4785.7,0.001]
[1756029365986,1.49822598,4785.8,4785.7,0.001]
[1756029366817,13.18155663,4785.8,4785.7,0.001]
[1756029367020,2.74955847,4785.7,4785.2,0.001]
[1756029367316,0.2939,4785.3,4785.2,0.001]
[1756029367488,6.03784012,4785.3,4785.2,0.001]
[1756029367688,6.70856963,4785.3,4785.2,0.001]
[1756029368116,7.03565993,4785.3,4785.2,0.001]
[1756029368317,7.26424593,4785.3,4785.2,0.001]
[1756029368492,7.11944593,4785.3,4785.2,0.001]
[1756029369886,6.79235563,4785.3,4785.2,0.001]
[1756029370801,9.79235563,4785.3,4785.2,0.001]
[1756029371331,11.95334118,4785.3,4785.2,0.001]
[1756029372196,14.04307432,4785.3,4785.2,0.001]
[1756029372900,12.54208877,4785.3,4785.2,0.001]
[1756029373431,11.95624712,4785.3,4785.2,0.001]
[1756029374187,12.28469095,4785.3,4785.2,0.001]
[1756029375204,14.37442409,4785.3,4785.2,0.001]
[1756029375406,12.28469095,4785.3,4785.2,0.001]
[1756029376394,10.78079946,4785.3,4785.2,0.001]
[1756029376787,10.58473808,4785.3,4785.2,0.001]
[1756029377021,3.66,4785.2,4784.2,0.001]
[1756029377322,0.8426083,4785.1,4784.2,0.001]
[1756029377501,3.64689304,4785.0,4784.2,0.001]
[1756029377702,4.13889304,4784.9,4784.2,0.001]
[1756029378424,4.76733304,4784.9,4784.2,0.001]
[1756029380118,4.76733304,4784.9,4784.2,2.09121286]
[1756029380320,4.76727408,4784.9,4784.2,0.001]
[1756029381227,5.24197408,4784.9,4784.2,0.001]
[1756029382531,5.54577408,4784.9,4784.2,0.001]
[1756029383026,5.54577408,4784.9,4784.3,0.001]
[1756029384943,5.87289916,4784.9,4784.3,0.001]
[1756029387038,5.87290273,4784.9,4784.3,0.001]
[1756029387743,5.87291997,4784.9,4784.3,0.001]
[1756029389413,5.54579489,4784.9,4784.3,0.001]
[1756029391446,4.76729489,4784.9,4784.3,0.001]
[1756029391659,1.12744976,4784.7,4784.3,0.001]
[1756029391960,3.94317778,4784.6,4784.3,0.001]
[1756029392248,0.45117778,4784.5,4784.3,0.001]
[1756029392482,3.94317778,4784.4,4784.3,0.001]
[1756029392623,4.02697178,4784.4,4784.3,0.3117]
[1756029395228,4.02697178,4784.4,4784.3,0.001]
[1756029396227,5.35052716,4784.4,4784.3,0.001]
[1756029396832,5.15442154,4784.4,4784.3,0.001]
[1756029397044,5.35053082,4784.4,4784.3,0.001]
[1756029397731,5.81113082,4784.4,4784.3,0.001]
[1756029397932,5.35053082,4784.4,4784.3,0.001]
[1756029398353,4.22308106,4784.4,4784.3,0.001]
[1756029400238,4.02697178,4784.4,4784.3,0.001]
[1756029400434,4.22320675,4784.4,4784.3,0.001]
[1756029402259,4.41957095,4784.4,4784.3,0.001]
[1756029406374,4.41957095,4784.4,4784.2,0.001]
[1756029406549,0.64741275,4784.3,4784.2,0.001]
[1756029407171,0.64754203,4784.3,4784.2,0.001]
[1756029407372,0.64754203,4784.3,4784.2,0.3117]
[1756029407571,1.27600403,4784.3,4784.2,0.3117]
[1756029409676,1.47236843,4784.3,4784.2,0.3117]
[1756029410175,1.47236843,4784.3,4784.2,2.40191361]
[1756029410378,1.47236843,4784.3,4784.2,0.3117]
[1756029413145,1.47236843,4784.3,4784.2,2.40191361]
[1756029413382,0.84390643,4784.3,4784.2,0.3117]
[1756029413557,0.8439073,4784.3,4784.2,0.3117]
[1756029413964,0.64754254,4784.3,4784.2,0.3117]
[1756029414185,1.77857433,4784.3,4784.2,0.3117]
[1756029415887,2.40700233,4784.3,4784.2,2.40191361]
[1756029416257,2.40700233,4784.3,4784.2,0.3117]
[1756029416980,2.40696659,4784.3,4784.2,0.3117]
[1756029417369,1.07960578,4784.3,4784.2,2.40191361]
[1756029417587,1.20502653,4784.3,4784.2,2.84670497]
[1756029417788,1.20502653,4784.3,4784.2,2.64820497]
[1756029419489,0.45117778,4784.3,4784.2,2.64820497]
[1756029420370,0.45117778,4784.3,4784.2,2.84670497]
[1756029420566,0.45117778,4784.3,4784.2,0.001]
[1756029420774,1.64922653,4784.3,4784.2,0.001]
[1756029421095,1.64922653,4784.3,4784.2,2.09121361]
[1756029421303,0.45117778,4784.3,4784.2,2.09121361]
[1756029422207,1.07959278,4784.3,4784.2,2.09121361]
[1756029422705,1.07959278,4784.3,4784.2,2.38871361]
[1756029423278,0.45117778,4784.3,4784.2,2.86256479]
[1756029423474,1.95922653,4784.3,4784.2,0.001]
[1756029423697,1.83381778,4784.3,4784.2,0.001]
[1756029424087,2.96484957,4784.3,4784.2,0.001]
[1756029424287,2.96569675,4784.3,4784.2,0.001]
[1756029426079,3.16188901,4784.3,4784.2,0.001]
[1756029426576,3.16188636,4784.3,4784.2,0.001]
[1756029429722,2.03085457,4784.3,4784.2,0.001]
[1756029431040,2.03085457,4784.3,4784.1,0.041]
[1756029431325,4.58341457,4784.2,4784.1,0.041]
[1756029431622,4.89335877,4784.2,4784.1,0.041]
[1756029432430,5.52191177,4784.2,4784.1,0.041]
[1756029433725,9.18191177,4784.2,4784.1,0.041]
[1756029433925,3.66,4784.1,4783.8,0.021]
[1756029434107,0.31,4783.9,4783.8,0.021]
[1756029434292,1.15431185,4783.9,4783.8,0.021]
[1756029434696,1.68232485,4783.9,4783.8,0.021]
[1756029435151,1.48617177,4783.9,4783.8,0.021]
[1756029435992,1.485983,4783.9,4783.8,0.021]
[1756029436628,1.48592718,4783.9,4783.8,0.021]
[1756029437224,7.23627187,4783.9,4783.8,0.021]
[1756029438127,5.14592718,4783.9,4783.8,0.021]
[1756029438528,7.23627187,4783.9,4783.8,0.021]
[1756029438931,5.14592718,4783.9,4783.8,0.021]
[1756029440058,8.63692718,4783.9,4783.8,0.021]
[1756029443309,10.72727187,4783.9,4783.8,0.021]
[1756029444335,3.66,4783.8,4783.6,0.001]
[1756029444545,8.08881418,4783.7,4783.6,0.001]
[1756029444742,8.51731418,4783.7,4783.6,0.001]
[1756029445045,8.92831546,4783.7,4783.6,0.001]
[1756029445853,8.73237044,4783.7,4783.6,0.001]
[1756029446027,3.0,4783.6,4783.1,0.04]
[1756029446343,1.12666939,4783.4,4783.1,0.04]
[1756029446670,3.94396916,4783.3,4783.1,0.04]
[1756029446812,0.45196916,4783.2,4783.1,0.04]
[1756029447310,1.08060816,4783.2,4783.1,0.04]
[1756029447558,1.40779182,4783.2,4783.1,0.04]
[1756029449347,1.40779182,4783.2,4783.1,0.355]
[1756029450952,1.08060816,4783.2,4783.1,0.355]
[1756029455744,1.08060816,4783.2,4783.1,0.04]
[1756029455745,1.79900816,4783.2,4783.1,0.04]
[1756029456812,2.92567755,4783.2,4783.1,0.04]
[1756029457445,2.92567755,4783.2,4783.1,0.041]
[1756029458262,3.12157159,4783.2,4783.1,0.041]
[1756029458460,2.20727755,4783.2,4783.1,0.041]
[1756029458981,2.20727755,4783.2,4783.1,0.356]
[1756029459306,5.8942219,4783.2,4783.1,0.356]
[1756029460278,4.76755251,4783.2,4783.1,0.356]
[1756029461550,4.76755251,4783.2,4783.1,0.041]
[1756029462364,4.76755251,4783.2,4782.8,0.02]
[1756029462655,1.12978135,4783.0,4782.8,0.02]
[1756029462850,3.94296916,4782.9,4782.8,0.02]
[1756029463054,4.57160816,4782.9,4782.8,0.02]
[1756029463297,4.76787358,4782.9,4782.8,0.335]
[1756029463455,5.89765493,4782.9,4782.8,0.335]
[1756029463989,5.89765493,4782.9,4782.8,2.42582545]
[1756029464156,5.89765493,4782.9,4782.8,0.335]
[1756029464358,1.77801593,4782.9,4782.8,2.42582545]
[1756029464558,5.26901593,4782.9,4782.8,2.42582545]
[1756029464773,1.77801593,4782.9,4782.8,2.42582545]
[1756029464996,1.77801593,4782.9,4782.8,0.02]
[1756029465190,2.49641593,4782.9,4781.1,3.04]
[1756029465487,0.56536586,4782.2,4781.2,1.10594]
[1756029465678,0.45196916,4782.1,4782.0,2.09117524]
[1756029475415,0.45196916,4782.1,4782.0,2.09217524]
[1756029483730,1.02476586,4782.9,4782.6,2.09091289]
[1756029484026,0.56536586,4782.9,4782.8,2.09082545]
[1756029484232,1.33416586,4782.9,4782.8,2.09082545]
[1756029484528,0.7688,4782.9,4782.8,2.09082545]
[1756029484734,1.33416586,4782.9,4782.8,2.09082545]
[1756029485632,0.7688,4782.9,4782.8,2.09082545]
[1756029485929,0.56536586,4783.0,4782.9,2.09078174]
[1756029486342,1.02476586,4783.0,4782.9,2.09078174]
[1756029486531,4.05836586,4783.1,4783.0,2.09073803]
[1756029486713,4.51776586,4783.1,4783.0,2.09073803]
[1756029487131,1.02676586,4783.1,4783.0,2.09073803]
[1756029487433,0.002,4783.1,4783.0,2.09073803]
[1756029487734,0.4614,4783.1,4783.0,2.09073803]
[1756029487894,0.7708,4783.1,4783.0,2.09073803]
[1756029495533,1.2226084,4783.1,4783.0,2.09073803]
[1756029497047,1.2226084,4783.1,4782.8,2.11082066]
[1756029497350,4.4022084,4783.0,4782.9,2.09078174]
[1756029497551,4.7116084,4783.0,4782.9,2.09078174]
[1756029498938,3.9428084,4783.0,4782.9,2.09078174]
[1756029499127,3.9418084,4783.0,4782.9,2.09078174]
[1756029501256,4.4012084,4783.0,4782.9,2.09078174]
[1756029502251,0.9112084,4783.0,4782.9,2.09078174]
[1756029502454,4.4012084,4783.0,4782.9,2.09078174]
[1756029508954,3.9418084,4783.0,4782.9,2.09078174]
[1756029509445,4.3859084,4783.0,4782.9,2.09078174]
[1756029510567,3.9418084,4783.0,4782.9,2.09078174]
[1756029512354,4.3859084,4783.0,4782.9,2.09078174]
[1756029514760,4.6806084,4783.0,4782.9,2.09078174]
[1756029518063,4.6806084,4783.0,4782.8,0.02]
[1756029518260,0.4518084,4782.9,4782.8,0.02]
[1756029518463,1.1906084,4782.9,4782.8,0.02]
[1756029518742,1.1906084,4782.9,4782.8,2.11082545]
[1756029524242,1.75597426,4782.9,4782.8,0.02]
[1756029527343,1.1906084,4782.9,4782.8,0.02]
[1756029527557,1.38690042,4782.9,4782.8,0.02]
[1756029527875,2.01556042,4782.9,4782.8,0.02]
[1756029528374,1.8192684,4782.9,4782.8,0.02]
[1756029529477,2.01552771,4782.9,4782.8,0.02]
[1756029531404,5.67552771,4782.9,4782.8,0.02]